Workbook

Sheet Metric Input
B2: LCD Display Calculator for Width, Height, Area, Diagonal Length, and Aspect Ratio with Metric and English Conversion | G2: x
B4: Note: This color background indicates a user entry. All other numbers are calculated values. | E4: Switch to English (inches) Input
B6: Metric (mm) Input
B7: Use "Active Area" dimensions from specification in "Width" and "Height" below.
B8: Or estimate Active Area by multiplying dot pitch times number of dots.
B9: Do not use "Viewing Area" dimensions from manufacturer's specification.
B11: Calculates area, diagonal length and aspect ratio from given width and height in mm | E11: Calculates width and height for common and given aspect ratios from a given diagonal length in mm
B12: Width (mm) | C12: Height (mm) | E12: Diagonal in mm
B13: 2200.00 | C13: 180.00 | E13: 410.00
B15: Width (inches) | C15: =B13/25.4 -> 86.61 | E15: Diagonal (in) | F15: 16.000
B16: Height (inches) | C16: =C13/25.4 -> 7.09 | F16: 3
E17: At 4:3 (1.333) Aspect Ratio | F17: =SQRT(4^2+3^2) -> 5
B18: Area (sq mm) | C18: =B13*C13 -> 396000.00 | E18: Width (mm) | F18: =E13*4/F17 -> 328.000
B19: Area (sq in) | C19: =C15*C16 -> 613.80 | E19: Height (mm) | F19: =E13*3/F17 -> 246.000
E20: Width (in) | F20: =F15*4/F17 -> 12.800
B21: Diagonal (mm) | C21: =SQRT((B13^2)+C13^2) -> 2207.35 | E21: Height (in) | F21: =F15*3/F17 -> 9.600
B22: Diagonal (in) | C22: =SQRT((C15^2)+C16^2) -> 86.90
E23: At 1:1 (1.000) Aspect Ratio | F23: =SQRT(2) -> 1.414213562
B24: W/H Asp Ratio | C24: =B13/C13 -> 12.22 | E24: Width (mm) | F24: =E13*1/F23 -> 289.914
B25: H/W Asp Ratio | C25: =C13/B13 -> 0.08 | E25: Height (mm) | F25: =E13*1/F23 -> 289.914
E26: Width (in) | F26: =F15*1/F23 -> 11.314
E27: Height (in) | F27: =F15*1/F23 -> 11.314
E29: At 16:9 (1.778) Aspect Ratio | F29: =SQRT(16^2+9^2) -> 18.35755975
E30: Width (mm) | F30: =E13*(16/F29) -> 357.346
E31: Height (mm) | F31: =E13*(9/F29) -> 201.007
E32: Width (in) | F32: =F15*(16/F29) -> 13.945
E33: Height (in) | F33: =F15*(9/F29) -> 7.844
E35: At User Defined Aspect Ratio Entered as a Decimal Number (n.nnn) or Fraction (W/H)
E36: Width to Height | F36: 7.0000
E37: Calc. Diag | F37: =SQRT(1^2+F36^2) -> 7.071
E38: Width (mm) | F38: =E13*(F36/F37) -> 405.879
E39: Height (mm) | F39: =E13*(1/F37) -> 57.983
E40: Width (in) | F40: =F15*(F36/F37) -> 15.839
E41: Height (in) | F41: =F15*(1/F37) -> 2.263

Sheet English Input
A1: tft
B2: LCD Display Calculators for Width, Height, Area, Diagonal Length and Aspect Ratio with Metric and English Conversion
B4: Note: This color background indicates a user entry. All other numbers are calculated values. | E4: Switch to Metric (mm) Input
B6: English (inches) Input
B8: Calculates area, diagonal length and aspect ratio from given width and height in inches | E8: Calculates width and height for common or given aspect ratios from a given diagonal length in inches
B9: Width (in) | C9: Height (in) | E9: Diagonal in Inches
B10: 2.00 | C10: 4.00 | E10: 4.50
B12: Width (mm) | C12: =B10*25.4 -> 50.800 | E12: Diagonal (mm) | F12: =E10*25.4 -> 114.30
B13: Height (mm) | C13: =C10*25.4 -> 101.600
E14: At 4:3 (1.333) Aspect Ratio | F14: =SQRT(4^2+3^2) -> 5
B15: Area (sq in) | C15: =B10*C10 -> 8.000 | E15: Width (in) | F15: =E10*4/F14 -> 3.600
B16: Area (sq mm) | C16: =C12*C13 -> 5161.280 | E16: Height (in) | F16: =E10*3/F14 -> 2.700
E17: Width (mm) | F17: =F12*4/F14 -> 91.440
B18: Diagonal (inches) | C18: =SQRT((B10^2)+C10^2) -> 4.472 | E18: Height (mm) | F18: =F12*3/F14 -> 68.580
B19: Diagonal (inches) | C19: =C18*25.4 -> 113.592
E20: At 1:1 (1.000) Aspect Ratio | F20: =SQRT(2) -> 1.414213562
B21: W/H Asp Ratio | C21: =B10/C10 -> 0.500 | E21: Width (in) | F21: =E10*1/F20 -> 3.182
B22: H/W Asp Ratio | C22: =C10/B10 -> 2.000 | E22: Height (in) | F22: =E10*1/F20 -> 3.182
E23: Width (mm) | F23: =F12*1/F20 -> 80.822
E24: Height (mm) | F24: =F12*1/F20 -> 80.822
E26: At 16:9 (1.778) Aspect Ratio | F26: =SQRT(16^2+9^2) -> 18.35755975
E27: Width (in) | F27: =E10*(16/F26) -> 3.922
E28: Height (in) | F28: =E10*(9/F26) -> 2.206
E29: Width (mm) | F29: =F12*(16/F26) -> 99.621
E30: Height (mm) | F30: =F12*(9/F26) -> 56.037
E32: At User Defined Aspect Ratio Entered as a Decimal Number (n.nnn) or Fraction (W/H)
E33: Width to Height | F33: 2.0000
E34: Calc. Diag | F34: =SQRT(1^2+F33^2) -> 2.236
B35: Protection Password: ANTIFUBAR | E35: Width (in) | F35: =E10*(F33/F34) -> 4.025
E36: Height (in) | F36: =E10*(1/F34) -> 2.012
B37: =HYPERLINK("http://www.markproductscorp.com/","Provided By: Mark Products, LLC www.markproductscorp.com") -> Provided By: Mark Products, LLC www.markproductscorp.com | E37: Width (mm) | F37: =F12*(F33/F34) -> 102.233
E38: Height (mm) | F38: =F12*(1/F34) -> 51.117
